bitfinex-derivatives/quotes_BTCF0:USTF0_20251130
["timestamp","ask_amount","ask_price","bid_price","bid_amount"]
[1764545198472,0.5458156,90777.0,90776.0,0.07641971]
[1764545198676,0.3648,90777.0,90776.0,0.07641971]
[1764545199072,0.3758156,90777.0,90776.0,0.07641971]
[1764545199270,0.3648,90777.0,90776.0,0.07641971]
[1764545201075,0.001,90777.0,90776.0,0.08743541]
[1764545201274,5.952e-05,90785.0,90784.0,0.04593]
[1764545202979,5.952e-05,90785.0,90784.0,0.12508437]
[1764545203286,5.952e-05,90785.0,90784.0,0.04593]
[1764545203466,5.952e-05,90785.0,90784.0,0.04793]
[1764545204267,0.04287952,90785.0,90784.0,0.04793]
[1764545204577,0.02181952,90785.0,90784.0,0.04793]
[1764545204767,5.952e-05,90785.0,90784.0,0.04793]
[1764545205478,0.02181952,90785.0,90784.0,0.04793]
[1764545205974,5.952e-05,90785.0,90784.0,0.04793]
[1764545207164,0.04287952,90785.0,90784.0,0.04793]
[1764545208379,0.04287952,90785.0,90784.0,0.12707646]
[1764545208576,0.3608,90795.0,90784.0,0.12707646]
[1764545208577,0.04298517,90801.0,90800.0,0.04499]
[1764545209467,0.04298517,90801.0,90800.0,0.02238]
[1764545209665,0.04298517,90801.0,90800.0,0.02738]
[1764545209882,0.45298517,90801.0,90800.0,0.005]
[1764545210672,0.58016869,90801.0,90800.0,0.005]
[1764545210872,0.04282,90781.0,90780.0,0.07913913]
[1764545211068,0.04282,90777.0,90776.0,0.01696971]
[1764545211267,0.04282,90777.0,90773.0,0.3608]
[1764545211268,0.04282,90774.0,90773.0,0.3608]
[1764545211473,0.04282,90767.0,90766.0,0.07941457]
[1764545211982,0.48282,90767.0,90766.0,0.01741234]
[1764545214377,0.48282,90767.0,90766.0,0.06240234]
[1764545214575,0.48282,90767.0,90766.0,0.01741234]
[1764545214775,0.48282,90767.0,90766.0,0.03979234]
[1764545214974,0.48282,90767.0,90766.0,0.06240234]
[1764545215374,0.48282,90767.0,90766.0,0.00027544]
[1764545215576,0.48282,90767.0,90766.0,0.04526544]
[1764545217187,0.49282,90767.0,90766.0,0.04526544]
[1764545217580,0.49282,90767.0,90766.0,0.06190967]
[1764545221187,0.3851866,90769.0,90768.0,0.04499]
[1764545221188,0.3608,90769.0,90768.0,0.04499]
[1764545221387,0.38256,90769.0,90768.0,0.04499]
[1764545221886,0.40362,90769.0,90768.0,0.02238]
[1764545222088,0.04282,90756.0,90755.0,0.00028]
[1764545222287,0.02176,90736.0,90735.0,0.49728549]
[1764545222488,0.02176,90745.0,90744.0,0.04499]
[1764545222793,0.40362,90747.0,90746.0,0.04499]
[1764545222984,0.04282,90747.0,90746.0,0.04499]
[1764545223182,0.02176,90736.0,90735.0,0.40579]
[1764545223391,0.04390255,90736.0,90735.0,0.40579]
[1764545223690,0.00108255,90736.0,90735.0,0.40579]
[1764545224093,8.255e-05,90736.0,90735.0,0.40579]
[1764545225492,0.02284255,90736.0,90735.0,0.42217773]
[1764545225696,0.04390255,90736.0,90735.0,0.42217773]
[1764545226190,0.00108255,90736.0,90735.0,0.42217773]
[1764545226391,0.04390255,90736.0,90735.0,0.42217773]
[1764545226584,0.04290255,90736.0,90735.0,0.42217773]
[1764545226785,0.04390255,90736.0,90735.0,0.42217773]
[1764545227196,0.04290255,90736.0,90735.0,0.42217773]
[1764545227397,0.0538417,90727.0,90726.0,0.00027556]
[1764545227587,0.04282,90727.0,90726.0,0.06225303]
[1764545227791,0.25671488,90736.0,90735.0,0.04499]
[1764545227999,0.04406782,90736.0,90735.0,0.04499]
[1764545228305,0.00124782,90736.0,90735.0,0.04499]
[1764545229297,0.0538387,90752.0,90751.0,0.04499]
[1764545230199,0.05389019,90752.0,90751.0,0.04499]
[1764545230496,0.04287149,90752.0,90751.0,0.04499]
[1764545230903,5.149e-05,90752.0,90751.0,0.04499]
[1764545231395,0.02181149,90752.0,90751.0,0.04499]
[1764545231595,0.02181149,90752.0,90751.0,0.0560088]
[1764545231596,5.149e-05,90752.0,90751.0,0.0560088]
[1764545231798,5.149e-05,90752.0,90751.0,0.04499]
[1764545233089,0.00016527,90761.0,90760.0,0.05516]
[1764545233997,0.02192527,90761.0,90760.0,0.05516]
[1764545234187,0.02192527,90761.0,90760.0,0.05616]
[1764545234898,0.04320527,90761.0,90760.0,0.05616]
[1764545235492,0.04320527,90761.0,90760.0,0.06116]
[1764545235892,0.05422287,90761.0,90760.0,0.06116]
[1764545236806,0.00016527,90761.0,90760.0,0.06116]
[1764545237204,0.00016527,90761.0,90760.0,0.42196]
[1764545237401,0.04382,90779.0,90778.0,0.04583]
[1764545238493,0.04482,90779.0,90778.0,0.04583]
[1764545239001,0.04382,90779.0,90778.0,0.04583]
[1764545239196,0.04582,90779.0,90778.0,0.04583]
[1764545241099,0.02454,90779.0,90778.0,0.04583]
[1764545241498,0.04582,90779.0,90778.0,0.04583]
[1764545241907,0.04782,90779.0,90778.0,0.04583]
[1764545242295,0.04382,90779.0,90778.0,0.04583]
[1764545242497,0.004,90779.0,90778.0,0.0568454]
[1764545243012,0.3608,90785.0,90784.0,0.0700348]
[1764545243213,0.0110144,90787.0,90786.0,0.04583]
[1764545243390,0.0548344,90787.0,90786.0,0.04583]
[1764545243703,0.0548355,90778.0,90777.0,0.04583]
[1764545245904,0.0588355,90778.0,90777.0,0.04583]
[1764545247802,0.0548355,90778.0,90777.0,0.04583]
[1764545248112,0.0598355,90778.0,90777.0,0.04583]
[1764545265816,0.0559065,90770.0,90769.0,0.04391527]
[1764545266010,0.4659065,90770.0,90769.0,0.00016527]
[1764545266322,0.0559077,90760.0,90759.0,0.04375]
[1764545266516,0.1859077,90760.0,90759.0,0.04375]
[1764545266717,0.4959077,90760.0,90759.0,0.04375]
[1764545267017,0.0559081,90757.0,90756.0,0.40455]
[1764545267807,0.04489,90757.0,90756.0,0.40455]
[1764545268112,0.04489,90757.0,90756.0,0.41775]
[1764545270321,0.04505527,90766.0,90765.0,0.04375]
[1764545270618,0.47505527,90766.0,90765.0,0.04375]
[1764545271323,0.0559081,90757.0,90756.0,0.41775]
[1764545272815,0.4559081,90757.0,90756.0,0.04375]
[1764545273713,0.0559091,90748.0,90747.0,0.40471527]
[1764545274521,0.0559091,90748.0,90747.0,0.04391527]
[1764545274726,0.0559091,90748.0,90747.0,0.00016527]
[1764545274925,0.0559091,90748.0,90747.0,0.00116527]
[1764545275116,0.4959091,90748.0,90747.0,0.02389527]
[1764545275311,0.4959091,90748.0,90747.0,0.04491527]
[1764545275918,0.4959091,90748.0,90747.0,0.02589527]
[1764545276118,0.4959091,90748.0,90747.0,0.00316527]
[1764545276326,0.4959091,90748.0,90726.0,0.03052422]
[1764545276327,0.04489,90727.0,90726.0,0.03052422]
[1764545276626,0.04489,90727.0,90726.0,0.06107422]
[1764545276924,0.81219,90727.0,90726.0,0.01732422]
[1764545277423,0.04489,90713.0,90712.0,0.19669]
[1764545277719,0.04489,90713.0,90712.0,0.23444922]
[1764545277921,0.04489,90713.0,90712.0,0.06048922]
[1764545278523,0.40569,90719.0,90718.0,0.04375]
[1764545279026,0.40569,90719.0,90718.0,0.02273]
[1764545279224,0.40569,90719.0,90718.0,0.04375]
[1764545279815,0.40769,90719.0,90718.0,0.02273]
[1764545280019,0.40769,90719.0,90712.0,0.06048922]
[1764545280020,0.04489,90713.0,90712.0,0.06048922]
[1764545280227,0.04489,90713.0,90712.0,0.04375]
[1764545280429,0.40769,90719.0,90718.0,0.04375]
[1764545281023,0.3857,90719.0,90718.0,0.04375]
[1764545281232,0.002,90719.0,90718.0,0.04375]
[1764545282124,0.0559123,90722.0,90721.0,0.04375]
[1764545282521,0.04489,90722.0,90721.0,0.04375]
[1764545282723,0.3608,90727.0,90726.0,0.04375]
[1764545283122,0.53576324,90736.0,90735.0,0.04375]
[1764545283325,0.41687587,90736.0,90735.0,0.04375]
[1764545284424,0.0559116,90728.0,90727.0,0.05695]
[1764545284824,0.0559134,90713.0,90712.0,0.06121139]
[1764545285026,0.04489,90713.0,90712.0,0.06121139]
[1764545285429,0.3837,90717.0,90716.0,0.04375]
[1764545286131,0.40569,90717.0,90716.0,0.04375]
[1764545286646,0.53569,90717.0,90716.0,0.04375]
[1764545286830,0.40569,90717.0,90716.0,0.04375]
[1764545287031,0.40669,90717.0,90716.0,0.04375]
[1764545288122,0.001,90717.0,90716.0,0.04375]
[1764545289240,0.001,90717.0,90716.0,0.054773]
[1764545290041,0.0120229,90717.0,90716.0,0.04375]
[1764545290239,0.001,90717.0,90716.0,0.04375]
[1764545290427,0.0120229,90717.0,90716.0,0.04375]
[1764545290825,0.001,90717.0,90716.0,0.04375]
[1764545291240,0.0120229,90717.0,90716.0,0.04375]
[1764545291538,0.0120229,90717.0,90712.0,0.06042209]
[1764545291539,0.04489,90713.0,90712.0,0.06042209]
[1764545292338,0.0239,90717.0,90716.0,0.04375]
[1764545293041,0.0229,90717.0,90716.0,0.04375]
[1764545293424,0.0110228,90718.0,90717.0,0.04375]
[1764545293835,0.0339228,90718.0,90717.0,0.04375]
[1764545294252,0.0110228,90718.0,90717.0,0.04375]
[1764545295138,0.04574,90724.0,90723.0,0.04597]
[1764545295731,0.40654,90728.0,90727.0,0.0569917]
[1764545295933,0.38324,90728.0,90727.0,0.0569917]
[1764545297041,0.02244,90728.0,90727.0,0.0569917]
[1764545297244,0.02644,90728.0,90727.0,0.0569917]
[1764545297641,0.02644,90728.0,90727.0,0.04597]
[1764545297841,0.04974,90728.0,90727.0,0.04597]
[1764545299845,0.04974,90728.0,90727.0,0.05987]
[1764545301448,0.02644,90728.0,90727.0,0.05987]
[1764545302045,0.004,90728.0,90727.0,0.05987]
[1764545302842,0.001976,90728.0,90727.0,0.05987]
[1764545306936,0.4186276,90728.0,90727.0,0.04597]
[1764545307346,0.0558523,90722.0,90721.0,0.04289]
[1764545308348,0.0558523,90722.0,90721.0,0.02174]
[1764545308847,0.0578523,90722.0,90721.0,0.02174]
[1764545309648,0.0578523,90722.0,90721.0,0.04289]
[1764545310246,0.04683,90722.0,90721.0,0.04289]
[1764545311152,0.05772,90720.0,90719.0,0.21697]
[1764545311850,0.04483,90720.0,90719.0,0.21697]
[1764545312351,0.04583,90720.0,90719.0,0.21697]
[1764545313751,0.41917,90720.0,90719.0,0.21697]
[1764545314443,0.41917,90720.0,90719.0,0.17408]
[1764545314642,0.04483,90713.0,90712.0,0.05956209]
[1764545314844,0.04483,90713.0,90712.0,0.04289]
[1764545315143,0.04483,90713.0,90712.0,0.05849947]
[1764545315351,0.3618,90720.0,90719.0,0.04289]
[1764545315652,0.40663,90720.0,90719.0,0.04289]
[1764545315949,0.40563,90720.0,90719.0,0.04289]
[1764545316854,0.0558534,90713.0,90712.0,0.05849947]
[1764545317056,0.04483,90713.0,90712.0,0.06952297]
[1764545317242,0.0558534,90713.0,90712.0,0.05849947]
[1764545318252,0.001,90713.0,90712.0,0.06952297]
[1764545322356,0.001,90713.0,90703.0,0.17408]
[1764545322357,0.0558541,90707.0,90696.0,0.23503933]
[1764545322544,0.04483,90706.0,90705.0,0.04289]
[1764545322742,0.44483,90706.0,90705.0,0.04289]
[1764545322943,0.44483,90706.0,90699.0,0.01398]
[1764545322944,0.04483,90696.0,90695.0,0.04289]
[1764545323240,0.0558555,90696.0,90695.0,0.04289]
[1764545323439,0.04483,90696.0,90695.0,0.04289]
[1764545323957,0.0233,90696.0,90695.0,0.04289]
[1764545324164,0.0343255,90696.0,90695.0,0.04289]
[1764545324358,0.0233,90696.0,90695.0,0.04589]
[1764545324562,0.0569347,90702.0,90701.0,0.04379]
[1764545325253,0.3608,90704.0,90703.0,0.04379]
[1764545325557,0.4177345,90704.0,90703.0,0.04379]
[1764545326458,0.0569345,90704.0,90703.0,0.04379]
[1764545327150,0.0569345,90704.0,90703.0,0.04479]
[1764545327352,0.0569345,90704.0,90703.0,0.04579]
[1764545328365,0.04607536,90711.0,90710.0,0.04379]
[1764545329160,0.02339536,90711.0,90710.0,0.0548138]
[1764545329348,0.00016536,90711.0,90710.0,0.0548138]
[1764545329853,0.00016536,90711.0,90710.0,0.04379]
[1764545329854,0.04607536,90711.0,90710.0,0.04379]
[1764545330153,0.04591,90707.0,90706.0,0.21787]
[1764545330346,0.04591,90707.0,90706.0,0.2424342]
[1764545331352,0.04591,90707.0,90706.0,0.2434342]
[1764545333158,0.02323,90707.0,90706.0,0.2434342]
[1764545333355,0.02339536,90711.0,90710.0,0.0548138]
[1764545333659,0.00016536,90711.0,90710.0,0.0548138]
[1764545334455,0.02339536,90711.0,90710.0,0.0548138]
[1764545335561,0.00016536,90711.0,90710.0,0.0548138]
[1764545338156,0.05709896,90711.0,90710.0,0.04379]
[1764545339555,0.04591,90709.0,90708.0,0.38341]
[1764545339750,0.04591,90709.0,90708.0,0.40459]
[1764545340461,0.46591,90709.0,90708.0,0.04379]
[1764545340762,0.46591,90709.0,90708.0,0.02261]
[1764545342058,0.46591,90709.0,90708.0,0.04379]
[1764545342266,0.04591,90701.0,90700.0,0.40459]
[1764545343666,0.04591,90701.0,90700.0,0.40659]
[1764545344055,0.04591,90701.0,90700.0,0.40759]
[1764545345159,0.45591,90701.0,90700.0,0.003]
[1764545345556,0.24591,90701.0,90700.0,0.003]
[1764545345964,0.45591,90701.0,90700.0,0.003]
[1764545346258,0.46691,90701.0,90700.0,0.04479]
[1764545346653,0.04691,90701.0,90700.0,0.04479]
[1764545346857,0.10691,90701.0,90700.0,0.04479]
[1764545347163,0.04691,90701.0,90700.0,0.04479]
[1764545347368,0.04691,90701.0,90700.0,0.04379]
[1764545350562,0.001,90701.0,90700.0,0.04379]
[1764545350767,0.02423,90701.0,90700.0,0.04379]
[1764545350951,0.04691,90701.0,90700.0,0.04379]
[1764545352465,0.04691,90701.0,90700.0,0.054815]
[1764545352658,0.04691,90701.0,90700.0,0.04379]
[1764545355561,0.001,90701.0,90700.0,0.40459]
[1764545357766,0.0337449,90701.0,90700.0,0.40459]
[1764545357967,0.0120249,90701.0,90700.0,0.40459]
[1764545358170,0.0337449,90701.0,90700.0,0.40459]
[1764545358372,0.02272,90701.0,90700.0,0.40459]
[1764545359067,0.001,90701.0,90700.0,0.40459]
[1764545359273,0.0568649,90701.0,90700.0,0.40459]
[1764545361258,0.0337449,90701.0,90700.0,0.40459]
[1764545361770,0.0120249,90701.0,90700.0,0.40459]
[1764545362172,0.001,90701.0,90700.0,0.40459]
[1764545362382,0.0337449,90701.0,90700.0,0.40459]
[1764545363581,0.001,90701.0,90700.0,0.40459]
[1764545364373,0.02272,90701.0,90700.0,0.40459]
[1764545364768,0.04531,90701.0,90700.0,0.40459]
[1764545368969,0.001,90701.0,90700.0,0.40459]
[1764545369373,0.02283,90701.0,90700.0,0.40459]
[1764545369674,0.02283,90701.0,90700.0,0.41829]
[1764545370379,0.04542,90701.0,90700.0,0.41829]
[1764545372578,0.02283,90701.0,90700.0,0.41829]
[1764545374182,0.04542,90701.0,90700.0,0.41829]
[1764545374775,0.04542,90701.0,90700.0,0.40459]
[1764545375277,0.04542,90701.0,90700.0,0.41829]
[1764545375478,0.02283,90701.0,90700.0,0.41829]
[1764545375677,0.001,90701.0,90700.0,0.41829]
[1764545376778,0.00016536,90711.0,90710.0,0.00937]
[1764545377087,0.00016536,90711.0,90710.0,0.22567]
[1764545377284,0.00016536,90711.0,90710.0,0.2163]
[1764545377285,0.05560896,90711.0,90710.0,0.2163]
[1764545378087,0.05560896,90711.0,90710.0,0.5771]
[1764545378289,0.05860896,90711.0,90710.0,0.5771]
[1764545380090,0.04758536,90711.0,90710.0,0.5771]
[1764545380292,0.00316536,90711.0,90710.0,0.5771]
[1764545380786,0.05860896,90711.0,90710.0,0.5771]
[1764545382082,0.05860896,90711.0,90710.0,0.2163]
[1764545382280,0.44860896,90711.0,90710.0,0.19518]
[1764545382490,0.04442,90703.0,90702.0,0.04234]
[1764545382695,0.04442,90703.0,90702.0,0.2163]
[1764545383995,0.0554446,90703.0,90702.0,0.2163]
[1764545384794,0.0564446,90703.0,90702.0,0.2163]
[1764545387599,0.4364446,90703.0,90702.0,0.2163]
[1764545395700,0.04542,90703.0,90702.0,0.2163]
[1764545396095,0.29542,90703.0,90702.0,0.2163]
[1764545397401,0.04542,90703.0,90702.0,0.2163]
[1764545398007,0.001,90703.0,90702.0,0.2163]
[1764545398798,0.02371,90703.0,90702.0,0.2163]
[1764545399002,0.001,90703.0,90702.0,0.2163]
[1764545399608,0.04563,90703.0,90702.0,0.2163]
[1764545405812,0.46563,90703.0,90702.0,0.17396]
[1764545407318,0.04463,90694.0,90693.0,0.03840011]
[1764545407618,0.4956557,90694.0,90693.0,0.06160011]
[1764545408212,0.2256557,90694.0,90693.0,0.06160011]
[1764545408415,0.04463,90694.0,90693.0,0.06160011]
[1764545409820,0.04463,90694.0,90693.0,0.06260011]
[1764545411016,0.04463,90694.0,90693.0,0.07362591]
[1764545411215,0.46463,90694.0,90693.0,0.06260011]
[1764545411519,0.08463,90694.0,90693.0,0.06260011]
[1764545411815,0.04463,90694.0,90693.0,0.07362591]
[1764545412618,0.0556551,90700.0,90699.0,0.0458]
[1764545413516,0.1582851,90700.0,90699.0,0.0458]
[1764545414617,0.4982851,90700.0,90699.0,0.0458]
[1764545416811,0.1082851,90700.0,90699.0,0.0458]
[1764545417007,0.0549957,90694.0,90693.0,0.05998011]
[1764545417216,0.5049957,90694.0,90693.0,0.05998011]
[1764545417421,0.1149957,90694.0,90693.0,0.05998011]
[1764545417721,0.4649957,90694.0,90693.0,0.05998011]
[1764545418522,0.4649957,90694.0,90693.0,0.01580011]
[1764545418713,0.04397,90692.0,90691.0,0.02191591]
[1764545418913,0.45397,90692.0,90691.0,0.02191591]
[1764545419113,0.45397,90692.0,90691.0,0.04429591]
[1764545419311,0.45397,90692.0,90691.0,0.05892285]
[1764545420218,0.45397,90692.0,90691.0,0.01474285]
[1764545420617,0.45397,90692.0,90691.0,0.03754285]
[1764545421010,0.45397,90692.0,90691.0,0.05992285]
[1764545421208,0.04397,90692.0,90691.0,0.05992285]
[1764545421609,0.04397,90692.0,90691.0,0.03754285]
[1764545422323,0.04397,90692.0,90691.0,0.05992285]
[1764545425820,0.04397,90692.0,90686.0,0.00027568]
[1764545426025,0.0549967,90686.0,90685.0,0.08681422]
[1764545426412,0.04397,90686.0,90685.0,0.08681422]
[1764545426722,0.04397,90686.0,90685.0,0.09710574]
[1764545427026,0.04408591,90686.0,90685.0,0.01572152]
[1764545427221,0.04408591,90686.0,90685.0,0.01872152]
[1764545427416,0.41408591,90686.0,90685.0,0.01691152]
[1764545427822,0.41408591,90686.0,90685.0,0.01391152]
[1764545428016,0.054998,90675.0,90674.0,0.18133152]
[1764545428223,0.0549986,90670.0,90669.0,0.14010549]
[1764545428422,0.0549986,90670.0,90669.0,0.00362]
[1764545428622,0.0549986,90670.0,90669.0,0.01744158]
[1764545429214,0.04556,90661.0,90660.0,0.15211549]
[1764545429414,0.04565464,90661.0,90660.0,0.17877529]
[1764545429726,0.02294464,90661.0,90660.0,0.05661257]
[1764545430327,9.464e-05,90661.0,90660.0,0.05661257]
[1764545431126,9.464e-05,90661.0,90660.0,0.06442257]
[1764545433722,0.0110272,90683.0,90680.0,0.0110274]
[1764545433929,0.40636,90681.0,90680.0,0.0420874]
[1764545434426,0.40636,90681.0,90680.0,0.03106]
[1764545434830,0.40636,90681.0,90680.0,0.0420874]
[1764545435232,0.04556,90681.0,90680.0,0.0420874]
[1764545435632,0.05056,90681.0,90680.0,0.0420874]
[1764545436426,0.05056,90681.0,90680.0,0.03106]
[1764545436623,0.05056,90681.0,90680.0,0.01553]
[1764545437221,0.0565886,90670.0,90669.0,0.1144945]
[1764545437426,0.02285,90670.0,90669.0,0.03106]
[1764545438024,0.05856,90678.0,90677.0,0.03106]
[1764545439430,0.05856,90678.0,90677.0,0.01553]
[1764545439732,0.04556,90661.0,90660.0,0.14387612]
[1764545440028,0.04556,90661.0,90660.0,0.22998142]
[1764545440225,0.0565897,90661.0,90660.0,0.22998142]
[1764545440827,0.0565897,90661.0,90660.0,0.21895162]
[1764545444335,0.03507,90664.0,90663.0,0.03106]
[1764545444635,0.0541688,90669.0,90666.0,0.0110291]
[1764545444835,0.0541688,90669.0,90668.0,0.03106]
[1764545445739,0.0561688,90669.0,90668.0,0.03106]
[1764545446828,0.0561688,90669.0,90668.0,0.01553]
[1764545447440,0.0561688,90669.0,90668.0,0.03106]
[1764545448537,0.04314,90661.0,90660.0,0.04491162]
[1764545453841,0.3608,90673.0,90672.0,0.03106]
[1764545454139,0.00016536,90684.0,90683.0,0.03106]
[1764545454533,0.02207,90701.0,90700.0,0.042085]
[1764545454933,0.05613,90708.0,90707.0,0.03106]
[1764545455239,0.3608,90719.0,90718.0,0.0420828]
[1764545455428,0.3608,90719.0,90718.0,0.2161628]
[1764545455633,0.00027556,90726.0,90725.0,0.0420819]
[1764545456142,0.00016536,90728.0,90727.0,0.03106]
[1764545456541,0.04314,90727.0,90726.0,0.3608]
[1764545456840,0.04314,90727.0,90726.0,0.20514]
[1764545457140,0.04314,90719.0,90718.0,0.03106]
[1764545457444,0.04314,90710.0,90709.0,0.03122536]
[1764545458333,0.04314,90710.0,90709.0,0.00016536]
[1764545458542,0.04314,90710.0,90709.0,0.01569536]
[1764545458944,0.04814,90710.0,90709.0,0.03122536]
[1764545459641,0.04814,90710.0,90709.0,0.00016536]
[1764545459941,0.04314,90710.0,90709.0,0.00016536]
[1764545460138,0.04914,90710.0,90709.0,0.00016536]
[1764545460345,0.04314,90689.0,90688.0,0.3922]
[1764545460535,0.04314,90689.0,90688.0,0.55364]
[1764545462342,0.04714,90689.0,90688.0,0.55364]
[1764545463541,0.04714,90689.0,90688.0,0.53794]
[1764545463742,0.05613,90675.0,90674.0,0.3608]
[1764545464045,0.05613,90666.0,90665.0,0.49728549]
[1764545464236,0.05613,90666.0,90665.0,0.53492]
[1764545464936,0.41693,90666.0,90665.0,0.17412]
[1764545465137,0.41693,90666.0,90665.0,0.17512]
[1764545465738,0.41893,90666.0,90665.0,0.17412]
[1764545465942,0.41893,90666.0,90665.0,0.17512]
[1764545466138,0.86893,90666.0,90665.0,0.17512]
[1764545466345,0.0541704,90655.0,90654.0,0.09861831]
[1764545466646,0.0541704,90655.0,90654.0,0.11277262]
[1764545467441,0.0541704,90655.0,90654.0,0.11377262]
[1764545468043,0.04614,90655.0,90654.0,0.03085431]
[1764545468243,0.04614,90655.0,90654.0,0.04755431]
[1764545468649,0.04614,90655.0,90654.0,0.01415431]
[1764545468851,0.04314,90649.0,90648.0,0.3942]
[1764545469251,0.04314,90649.0,90648.0,0.40827522]
[1764545470541,0.04414,90649.0,90648.0,0.40827522]
[1764545471153,0.04414,90649.0,90648.0,0.01407522]
[1764545471454,0.04314,90647.0,90646.0,0.1744358]
[1764545471753,0.04314,90647.0,90646.0,0.1911358]
[1764545471957,0.04314,90647.0,90646.0,0.22225519]
[1764545472447,0.0541714,90647.0,90646.0,0.22225519]
[1764545472855,0.0541714,90647.0,90646.0,0.20555519]
[1764545473149,0.0541714,90647.0,90646.0,0.18885519]
[1764545473651,0.0551714,90647.0,90646.0,0.18885519]
[1764545473858,0.0551714,90647.0,90640.0,0.00952051]
[1764545473859,0.0535422,90641.0,90640.0,0.00952051]
[1764545474053,0.0535422,90641.0,90640.0,0.18368051]
[1764545474354,0.0535422,90641.0,90640.0,0.20038051]
[1764545474655,0.0535422,90641.0,90640.0,0.2143967]
[1764545474859,0.0535422,90641.0,90640.0,0.2310967]
[1764545475156,0.0535422,90641.0,90640.0,0.2320967]
[1764545475354,0.0535422,90641.0,90640.0,0.1986967]
[1764545475654,0.0535422,90641.0,90640.0,0.2320967]
[1764545476350,0.04251,90641.0,90640.0,0.2320967]
[1764545477160,0.04251,90641.0,90640.0,0.243129]
[1764545477661,0.0555,90650.0,90649.0,0.0334]
[1764545479553,0.0341,90650.0,90649.0,0.0444312]
[1764545479750,0.40347545,90656.0,90655.0,0.0334]
[1764545479944,0.40347545,90656.0,90645.0,0.0110316]
[1764545480157,0.02111,90646.0,90645.0,0.0444316]
[1764545480658,0.04251,90646.0,90645.0,0.0444316]
[1764545481154,0.36396545,90656.0,90655.0,0.0334]
[1764545481360,0.00016545,90656.0,90655.0,0.0334]
[1764545482853,0.00316545,90656.0,90655.0,0.0334]
[1764545483057,0.00316545,90656.0,90655.0,0.0444304]
[1764545483646,0.00316545,90656.0,90655.0,0.0334]
[1764545485057,0.00316545,90656.0,90655.0,0.4334]
[1764545485565,0.0671281,90675.0,90674.0,0.0167]
[1764545485767,0.0561,90675.0,90674.0,0.0444281]
[1764545486455,0.0541381,90674.0,90673.0,0.1742]
[1764545486662,0.4241381,90674.0,90673.0,0.1742]
[1764545487665,0.0677391,90666.0,90665.0,0.00016545]
[1764545488468,0.8585391,90666.0,90665.0,0.00016545]
[1764545488968,0.8595391,90666.0,90665.0,0.00016545]
[1764545489356,0.8625391,90666.0,90665.0,0.00016545]
[1764545489763,0.4325391,90666.0,90665.0,0.00016545]
[1764545490070,0.4925391,90666.0,90665.0,0.00016545]
[1764545490267,0.4325391,90666.0,90665.0,0.03356545]
[1764545491166,0.4325391,90666.0,90665.0,0.01686545]
[1764545491369,0.4325391,90666.0,90665.0,0.00016545]
[1764545492869,0.04311,90660.0,90659.0,0.0444299]
[1764545494064,0.0136,90657.0,90656.0,0.0110303]
[1764545494371,0.05671,90657.0,90656.0,0.0444303]
[1764545495565,0.05771,90657.0,90656.0,0.0444303]
[1764545496670,0.001,90657.0,90656.0,0.0531503]
[1764545496869,0.00016545,90666.0,90665.0,0.0444292]
[1764545497073,0.05664,90684.0,90683.0,0.044427]
[1764545497281,0.40391,90693.0,90692.0,0.0444259]
[1764545497672,0.4149358,90693.0,90692.0,0.0334]
[1764545497872,0.4149358,90693.0,90692.0,0.0167]
[1764545499076,0.05671,90684.0,90683.0,0.04459245]
[1764545500373,0.05871,90684.0,90683.0,0.04459245]
[1764545501876,0.04327545,90702.0,90701.0,0.0444249]
[1764545502074,0.00016545,90702.0,90701.0,0.5793849]
[1764545502680,0.04311,90710.0,90709.0,0.0334]
[1764545503081,0.3608,90714.0,90713.0,0.04234]
[1764545503285,0.38218,90714.0,90713.0,0.04234]
[1764545503484,0.04311,90714.0,90713.0,0.04234]
[1764545503680,0.05745,90720.0,90719.0,0.0557127]
[1764545503882,0.00016536,90723.0,90722.0,0.04469]
[1764545504179,0.04385,90738.0,90737.0,0.04469]
[1764545504381,0.03475,90747.0,90746.0,0.04469]
[1764545504783,0.3608,90755.0,90754.0,0.04469]
[1764545504784,0.40465,90755.0,90754.0,0.04469]
[1764545505081,0.04385,90743.0,90742.0,0.3608]
[1764545505284,0.3608,90744.0,90733.0,0.00016536]
[1764545505584,0.04401536,90748.0,90747.0,0.04469]
[1764545505773,0.00016536,90748.0,90747.0,0.04469]
[1764545506876,0.04385,90741.0,90740.0,0.40549]
[1764545507276,0.00016536,90748.0,90747.0,0.04469]
[1764545508388,0.00016536,90748.0,90747.0,0.04669]
[1764545510484,0.04401536,90748.0,90747.0,0.002]
[1764545510788,0.04401536,90748.0,90747.0,0.14916]
[1764545511490,0.04401536,90748.0,90747.0,0.002]
[1764545511678,0.04385,90734.0,90733.0,0.00016536]
[1764545511989,0.04385,90734.0,90733.0,0.02274536]
[1764545512579,0.04385,90734.0,90733.0,0.00016536]
[1764545512786,0.41385,90734.0,90733.0,0.00116536]
[1764545513076,0.41385,90734.0,90733.0,0.00716536]
[1764545514188,0.19385,90734.0,90733.0,0.00716536]
[1764545514988,0.42385,90734.0,90733.0,0.00716536]
[1764545515483,0.42385,90734.0,90711.0,0.3608]
[1764545515484,0.054871,90733.0,90716.0,0.011023]
[1764545515681,0.04385,90717.0,90716.0,0.011023]
[1764545516883,0.04385,90713.0,90712.0,0.1825635]
[1764545517083,0.04385,90713.0,90712.0,0.21958655]
[1764545517889,0.02115,90713.0,90712.0,0.21958655]
[1764545518194,0.05771,90720.0,90719.0,0.0557127]
[1764545518487,0.05771,90720.0,90712.0,0.16387305]
[1764545518488,0.04385,90713.0,90712.0,0.16387305]
[1764545519484,0.04385,90713.0,90712.0,0.18645305]
[1764545519680,0.04385,90713.0,90712.0,0.20856305]
[1764545521092,0.04485,90713.0,90712.0,0.20856305]
[1764545521290,0.007,90713.0,90712.0,0.20856305]
[1764545521796,0.008,90713.0,90712.0,0.20856305]
[1764545522191,0.008,90713.0,90712.0,0.21958655]
[1764545522395,0.008,90713.0,90712.0,0.57958655]
[1764545523887,0.007,90713.0,90712.0,0.57958655]
[1764545524286,0.17660923,90740.0,90712.0,0.57958655]
[1764545524287,0.01386,90740.0,90725.0,0.0557119]